[Event "28th Saxony Seniors Open-ch 2020"]
[Site "Dresden"]
[Date "2020.10.13"]
[Round "1.1"]
[White "Pruefer, Friedbert"]
[Black "Mueckan, Friedbert"]
[Result "1-0"]
[ECO "A40"]
[WhiteElo "2249"]
[BlackElo "1874"]
[Annotator "ChessBase"]
[PlyCount "33"]
[EventDate "2020.10.13"]
[EventType "swiss"]
[EventCountry "GER"]
[SourceTitle "playchess.com"]
[Source "ChessBase"]
[SourceQuality "1"]
[TimeControl "40/5400+30:1800+30"]

1. d4 {[%emt 0:00:00]} e6 {[%emt 0:00:00]} 2. Bf4 {[%emt 0:00:11]} d5 {[%emt 0:00:17]} 3. e3 {[%emt 0:00:47]} Bd6 {[%emt 0:00:13]} 4. Bg3 {[%emt 0:00:20]} Nf6 {[%emt 0:00:10]} 5. Nd2 {[%emt 0:00:36]} O-O {[%emt 0:01:27]} 6. Bd3 {[%emt 0:01:17]} Nc6 {[%emt 0:00:31]} 7. Ngf3 {[%emt 0:01:15]} Nb4 {[%emt 0:02:13]} 8. Be2 {[%emt 0:00:50]} Bxg3 {[%emt 0:05:06]} 9. hxg3 {[%emt 0:00:09]} Nc6 {[%emt 0:00:21]} 10. c3 {[%emt 0:01:17]} Qd6 {[%emt 0:00:09]} 11. Bb5 {[%emt 0:07:57]} Ne7 {[%emt 0:01:33]} 12. Ne5 {[%emt 0:02:08]} a6 {[%emt 0:05:58]} 13. Bd3 {[%emt 0:00:23]} c5 {[%emt 0:01:57]} 14. Bxh7+ {[%emt 0:03:14]} Kh8 {[%emt 0:06:55]} 15. Bc2+ {[%emt 0:03:54]} Kg8 {[%emt 0:00:19]} 16. g4 {[%emt 0:02:36]} g6 {[%emt 0:04:29]} 17. Qf3 1-0